bitfinex-derivatives/quotes_SOLF0:USTF0_20250626
["timestamp","ask_amount","ask_price","bid_price","bid_amount"]
[1750954283090,41.0718,142.39,142.31,36.32]
[1750954283091,7.0211,142.37,142.34,7.022]
[1750954284190,38.6323,142.39,142.33,4.5001868]
[1750954284395,38.6323,142.39,142.32,6.49430991]
[1750954284691,7.0218,142.36,142.33,7.0226]
[1750954284894,4.5001868,142.38,142.31,42.81430991]
[1750954285095,7.0227,142.34,142.31,43.3437]
[1750954285291,4.5001868,142.38,142.31,43.3437]
[1750954285586,7.0227,142.34,142.31,43.3437]
[1750954285983,4.5001868,142.38,142.32,7.0234]
[1750954287291,7.0224,142.35,142.32,7.0234]
[1750954287593,38.6323,142.39,142.33,7.0229]
[1750954288091,7.0217,142.36,142.33,7.0226]
[1750954288491,7.0217,142.36,142.32,4.5001868]
[1750954288690,7.0217,142.36,142.33,7.0228]
[1750954288881,7.0217,142.36,142.32,4.5001868]
[1750954289286,7.022,142.35,142.33,7.0226]
[1750954289695,38.6323,142.39,142.33,7.0226]
[1750954289895,7.022,142.35,142.33,7.0226]
[1750954290494,7.022,142.35,142.32,18.01769671]
[1750954290694,7.022,142.35,142.32,10.99449671]
[1750954291691,7.022,142.35,142.33,7.0228]
[1750954292395,7.022,142.35,142.32,18.01769671]
[1750954294492,7.022,142.35,142.29,6.49430991]
[1750954294493,36.28,142.35,142.29,6.49430991]
[1750954294682,4.5001868,142.34,142.29,6.49430991]
[1750954294885,7.0248,142.3,142.28,42.77430991]
[1750954295498,4.569,142.34,142.29,6.49430991]
[1750954295696,36.28,142.35,142.3,10.99449671]
[1750954295893,7.0234,142.32,142.3,6.49430991]
[1750954296199,36.28,142.35,142.29,6.49430991]
[1750954296395,43.1313,142.35,142.28,47.27449671]
[1750954296596,7.0237,142.32,142.29,7.0248]
[1750954297897,7.0232,142.33,142.3,7.0244]
[1750954298094,43.1313,142.35,142.28,42.77430991]
[1750954298295,36.28,142.38,142.32,4.5001868]
[1750954298603,7.0212,142.37,142.34,7.0223]
[1750954298804,36.28,142.38,142.33,6.49430991]
[1750954299106,7.0217,142.36,142.33,7.0227]
[1750954299705,7.0217,142.36,142.34,7.0224]
[1750954300404,7.0217,142.36,142.33,7.0227]
[1750954300704,36.28,142.38,142.33,7.0227]
[1750954300705,7.022,142.35,142.33,7.0227]
[1750954300905,36.28,142.38,142.33,7.0227]
[1750954301301,7.0217,142.36,142.33,7.0227]
[1750954301701,7.0217,142.36,142.34,7.0224]
[1750954301899,7.0217,142.36,142.32,47.27449671]
[1750954302506,7.0217,142.36,142.33,7.0227]
[1750954303208,7.0217,142.36,142.33,13.51700991]
[1750954305306,7.0224,142.35,142.33,6.49430991]
[1750954305512,36.28,142.38,142.33,6.49430991]
[1750954305701,36.28,142.38,142.34,4.5001868]
[1750954305897,43.3305,142.42,142.36,10.99449671]
[1750954306302,7.021,142.37,142.36,6.49430991]
[1750954306507,4.5001868,142.39,142.34,6.49430991]
[1750954306713,7.0217,142.36,142.34,6.49430991]
[1750954306907,8.96254487,142.41,142.34,6.49430991]
[1750954307408,7.0218,142.36,142.34,6.49430991]
[1750954307608,4.97484435,142.4,142.34,6.49430991]
[1750954307801,4.5001868,142.39,142.34,6.49430991]
[1750954308000,7.0216,142.36,142.34,6.49430991]
[1750954308203,4.5001868,142.39,142.34,6.49430991]
[1750954309316,7.0219,142.35,142.34,6.49430991]
[1750954310012,7.0217,142.36,142.34,6.49430991]
[1750954310214,4.97851898,142.4,142.34,13.51670991]
[1750954310403,4.47472118,142.4,142.34,13.51670991]
[1750954310600,4.47472118,142.4,142.34,6.49430991]
[1750954311303,4.5001868,142.41,142.35,6.49430991]
[1750954311507,9.46132093,142.4,142.35,6.49430991]
[1750954311706,4.5001868,142.41,142.35,6.49430991]
[1750954311907,7.0218,142.36,142.34,6.49430991]
[1750954312209,7.0218,142.36,142.35,6.49430991]
[1750954312408,7.022,142.35,142.34,6.49430991]
[1750954314212,7.0229,142.33,142.32,8.71184151]
[1750954314419,7.0229,142.33,142.3,12.99388344]
[1750954314420,4.5001868,142.36,142.3,8.71184151]
[1750954314811,7.0239,142.31,142.3,8.71184151]
[1750954316220,7.0239,142.31,142.28,49.27388344]
[1750954316221,7.0244,142.3,142.29,8.71184151]
[1750954316427,40.7801868,142.34,142.27,12.99388344]
[1750954316428,40.7801868,142.34,142.27,8.71184151]
[1750954316722,7.0249,142.3,142.27,8.71184151]
[1750954316922,4.5001868,142.32,142.27,8.71184151]
[1750954317112,7.0252,142.29,142.27,8.71184151]
[1750954317513,7.0252,142.29,142.27,15.73774151]
[1750954318110,40.7801868,142.34,142.27,8.71184151]
[1750954318317,40.7801868,142.34,142.28,4.5001868]
[1750954318725,7.0242,142.31,142.28,11.5253868]
[1750954321723,7.0242,142.31,142.29,7.0249]
[1750954322327,7.0242,142.31,142.28,4.5001868]
[1750954322827,7.0236,142.32,142.29,7.0247]
[1750954323830,7.0232,142.33,142.3,7.0243]
[1750954324126,7.0232,142.33,142.29,4.5001868]
[1750954324517,4.7704,142.37,142.31,4.5001868]
[1750954324715,9.88342584,142.4,142.35,4.5001868]
[1750954324918,12.19925694,142.39,142.35,4.5001868]
[1750954325129,7.2086,142.41,142.35,4.5001868]
[1750954325924,7.0202,142.39,142.36,7.0212]
[1750954326223,7.0202,142.39,142.37,4.5001868]
[1750954326732,4.6326993,142.44,142.38,36.28]
[1750954326921,36.28,142.48,142.42,4.5001868]
[1750954327117,7.0172,142.45,142.42,11.5183868]
[1750954327322,36.28,142.48,142.42,11.5183868]
[1750954327524,36.28,142.48,142.44,4.5001868]
[1750954328021,11.63932248,142.49,142.44,4.5001868]
[1750954328022,7.0071,142.49,142.44,4.5001868]
[1750954329035,5.17331701,142.51,142.44,4.5001868]
[1750954329235,5.17331701,142.52,142.46,4.5001868]
[1750954329434,7.0152,142.49,142.46,40.7601868]
[1750954330226,7.0152,142.49,142.46,47.7766868]
[1750954331135,7.0152,142.49,142.46,40.7601868]
[1750954332030,7.0152,142.49,142.46,47.7765868]
[1750954332235,7.0148,142.5,142.46,47.7765868]
[1750954332437,43.3536,142.53,142.46,47.7765868]
[1750954332644,43.3536,142.53,142.47,7.016]
[1750954332940,40.7601868,142.56,142.48,4.5001868]
[1750954333131,45.3724868,142.56,142.48,4.5001868]
[1750954333329,7.0146,142.5,142.46,36.26]
[1750954333528,7.0146,142.5,142.47,4.5001868]
[1750954333841,4.5001868,142.54,142.47,4.5001868]
[1750954334034,7.0141,142.51,142.47,4.5001868]
[1750954334433,7.0141,142.51,142.47,11.5159868]
[1750954334629,7.0141,142.51,142.47,4.5001868]
[1750954335237,7.0137,142.52,142.47,4.5001868]
[1750954335740,7.0137,142.52,142.48,7.0151]
[1750954336334,7.0142,142.51,142.48,7.0151]
[1750954336535,7.0142,142.51,142.47,11.5160868]
[1750954336731,4.5001868,142.55,142.46,36.26]
[1750954336931,7.0143,142.51,142.46,40.7601868]
[1750954337735,7.0138,142.52,142.48,7.0155]
[1750954337931,40.8523,142.56,142.48,4.5001868]
[1750954338335,7.0134,142.53,142.49,7.0149]
[1750954340052,7.0136,142.52,142.49,7.0149]
[1750954340552,7.0136,142.52,142.48,11.5154868]
[1750954340855,7.0133,142.53,142.48,4.5001868]
[1750954341351,7.0143,142.51,142.48,4.5001868]
[1750954341751,7.0143,142.51,142.48,11.5154868]
[1750954342250,4.5001868,142.55,142.48,7.0155]
[1750954342439,4.5001868,142.53,142.46,40.7601868]
[1750954343253,7.0143,142.51,142.48,7.0155]
[1750954344750,7.0143,142.51,142.49,7.0149]
[1750954345359,4.5001868,142.53,142.46,40.7601868]
[1750954345954,7.0149,142.5,142.47,7.0158]
[1750954347859,4.5001868,142.53,142.46,40.7601868]
[1750954348558,7.0153,142.49,142.46,47.7765868]
[1750954349058,36.22,142.52,142.46,36.26]
[1750954349059,4.5001868,142.51,142.46,36.26]
[1750954349757,7.0158,142.48,142.46,36.26]
[1750954351647,7.016,142.47,142.46,36.26]
[1750954351847,4.5001868,142.51,142.43,672.2201868]
[1750954352158,7.0174,142.45,142.43,36.22]
[1750954354454,7.0175,142.44,142.41,11.5189868]
[1750954354662,4.5001868,142.47,142.41,7.0188]
[1750954354954,7.0178,142.44,142.42,7.0185]
[1750954356058,7.0178,142.44,142.41,7.0188]
[1750954356557,7.0178,142.44,142.41,7.0189]
[1750954356956,7.0178,142.44,142.42,7.0185]
[1750954357857,7.0178,142.44,142.41,7.0187]
[1750954358549,7.0173,142.45,142.42,7.0184]
[1750954358749,4.5001868,142.47,142.4,121.98692856]
[1750954358945,7.0177,142.44,142.41,7.0187]
[1750954362266,7.0173,142.45,142.42,7.0183]
[1750954362664,4.5001868,142.47,142.4,36.22]
[1750954362867,7.0178,142.44,142.41,7.0186]
[1750954363062,7.0178,142.44,142.4,36.22]
[1750954364363,7.0178,142.44,142.41,7.0189]
[1750954364963,7.0178,142.44,142.4,40.7201868]
[1750954364964,7.0186,142.42,142.4,40.7201868]
[1750954365276,36.22,142.48,142.36,633.7021]
[1750954365277,4.5001868,142.43,142.37,36.24]
[1750954365668,7.0197,142.4,142.37,36.24]
[1750954365861,2.3183,142.46,142.38,4.5001868]
[1750954366066,7.0182,142.43,142.38,4.5001868]
[1750954366275,38.5583,142.46,142.4,4.5001868]
[1750954367072,7.0178,142.44,142.41,7.0187]
[1750954367671,7.0178,142.44,142.42,7.0185]
[1750954367862,7.0173,142.45,142.42,7.0185]
[1750954368462,7.0182,142.43,142.4,4.5001868]
[1750954369273,7.0182,142.43,142.41,7.0189]
[1750954372378,7.0182,142.43,142.4,7.0192]
[1750954372574,38.5583,142.46,142.38,4.5001868]
[1750954372575,4.5001868,142.45,142.38,4.5001868]
[1750954372782,4.5001868,142.45,142.22,30.4701605]
[1750954372783,4.5001868,142.43,142.34,44.95184151]
[1750954373075,46.30673768,142.42,142.34,40.7401868]
[1750954373270,5.32324817,142.41,142.34,40.7401868]
[1750954373470,36.24,142.42,142.34,40.7401868]
[1750954373673,5.32217861,142.41,142.34,40.7401868]
[1750954373976,36.24,142.42,142.36,4.5001868]
[1750954374169,5.32302372,142.41,142.36,4.5001868]
[1750954374370,7.0191,142.41,142.36,4.5001868]
[1750954374781,7.0191,142.41,142.38,7.0202]
[1750954376682,7.0196,142.4,142.38,7.0202]
[1750954376885,7.0196,142.4,142.37,7.0207]
[1750954377580,40.7401868,142.42,142.34,178.4001868]
[1750954378182,7.0199,142.4,142.34,178.4001868]
[1750954378386,40.7401868,142.42,142.34,178.4001868]
[1750954378880,7.0197,142.4,142.37,7.0209]
[1750954379683,7.0197,142.4,142.38,7.0205]
[1750954379986,40.7401868,142.42,142.38,7.0205]
[1750954379987,7.0192,142.41,142.38,7.0205]
[1750954380282,40.7401868,142.42,142.38,7.0205]
[1750954380479,7.0197,142.4,142.38,7.0205]
[1750954380677,7.0197,142.4,142.37,7.0207]
[1750954381687,7.0192,142.41,142.36,4.5001868]
[1750954381873,40.93961896,142.45,142.38,4.5001868]
[1750954382073,36.2,142.45,142.4,4.5001868]
[1750954382382,7.0183,142.43,142.4,4.5001868]
[1750954382586,5.31963382,142.44,142.4,4.5001868]
[1750954382780,7.0177,142.44,142.41,7.0186]
[1750954382979,7.0177,142.44,142.4,4.5001868]
[1750954383679,7.0177,142.44,142.41,7.0187]
[1750954383885,7.0181,142.43,142.41,7.0187]
[1750954384084,36.2,142.45,142.38,40.7001868]
[1750954384395,38.4746,142.45,142.4,7.0195]
[1750954385187,7.0183,142.43,142.4,7.0195]
[1750954385677,7.0179,142.44,142.41,7.0189]
[1750954386978,7.018,142.43,142.41,7.0189]
[1750954387174,38.4746,142.45,142.41,7.0189]
[1750954387683,38.4746,142.45,142.4,7.0192]
[1750954387894,4.5001868,142.43,142.38,36.2]
[1750954388077,4.5001868,142.43,142.36,4.5001868]
[1750954388981,7.0197,142.4,142.37,7.0207]
[1750954391284,7.0197,142.4,142.38,7.0204]
[1750954391792,7.0191,142.41,142.38,7.0204]
[1750954392487,7.0191,142.41,142.37,6.53569882]
[1750954392488,7.0049583,142.45,142.4,4.5001868]
[1750954392790,7.0049583,142.45,142.4,11.03588562]
[1750954392791,5.33752085,142.44,142.4,11.03588562]
[1750954392995,7.0179,142.44,142.41,7.0189]
[1750954394382,2.2746,142.45,142.4,11.03588562]
[1750954394383,7.0181,142.43,142.4,11.5194868]
[1750954394894,7.0181,142.43,142.4,7.0193]
[1750954395196,7.0181,142.43,142.41,7.019]
[1750954395784,7.0181,142.43,142.4,7.0191]
[1750954395991,7.0178,142.44,142.39,42.73569882]
[1750954396189,7.0178,142.44,142.41,7.0188]
[1750954396482,2.2746,142.45,142.39,42.73569882]
[1750954396684,5.3373362,142.44,142.39,42.73569882]
[1750954396881,2.2746,142.45,142.4,7.0193]
[1750954397195,7.0183,142.43,142.4,7.0193]
[1750954397383,7.0183,142.43,142.41,7.019]
[1750954397589,7.0183,142.43,142.39,36.2]
[1750954398183,7.0179,142.44,142.41,7.019]
[1750954398789,7.0181,142.43,142.41,7.019]
[1750954398997,7.0181,142.43,142.4,7.0192]
[1750954399495,7.0181,142.43,142.41,7.0189]
[1750954400701,7.0181,142.43,142.4,7.0193]
[1750954401198,7.0181,142.43,142.4,7.0191]
[1750954401897,6.7747868,142.45,142.37,8.71184151]
[1750954402092,4.5001868,142.43,142.37,8.71184151]
[1750954402404,4.5001868,142.41,142.37,8.71184151]
[1750954402604,10.09698241,142.4,142.34,8.71184151]
[1750954402802,36.2,142.42,142.35,4.5001868]
[1750954403099,7.0203,142.39,142.35,4.5001868]
[1750954403301,36.2,142.42,142.35,4.5001868]
[1750954403495,7.0207,142.38,142.35,11.5218868]
[1750954406001,7.0207,142.38,142.36,6.5555067]
[1750954406402,7.0207,142.38,142.36,13.5769067]
[1750954409197,7.0202,142.39,142.36,13.5769067]
[1750954410008,7.0205,142.38,142.36,13.5769067]
[1750954410306,7.0205,142.38,142.36,6.5555067]
[1750954410909,7.0202,142.39,142.36,13.5767067]
[1750954411207,4.5001868,142.41,142.36,6.5555067]
[1750954411406,5.32689263,142.4,142.36,6.5555067]
[1750954411605,7.0206,142.38,142.36,6.5555067]
[1750954412808,7.0202,142.39,142.36,13.5765067]
[1750954413410,7.0205,142.38,142.36,13.5765067]
[1750954416408,4.5001868,142.41,142.36,6.5555067]
[1750954416609,5.32740223,142.4,142.36,6.5555067]
[1750954416804,4.5001868,142.41,142.36,6.5555067]
[1750954417004,7.0202,142.39,142.36,13.5766067]
[1750954417509,4.5001868,142.41,142.36,13.5766067]
[1750954417813,7.0206,142.38,142.36,13.5766067]
[1750954419006,7.0202,142.39,142.37,7.021]
[1750954419313,7.0202,142.39,142.36,6.5555067]
[1750954419710,7.0202,142.39,142.36,13.5765067]
[1750954420514,4.5001868,142.41,142.36,6.5555067]
[1750954420809,10.23367666,142.4,142.36,6.5555067]
[1750954421110,6.7964868,142.41,142.36,6.5555067]
[1750954421314,10.23367864,142.4,142.36,13.5767067]
[1750954421503,6.7964868,142.41,142.36,13.5767067]
[1750954421703,10.23545743,142.4,142.36,13.5767067]
[1750954421906,7.0205,142.38,142.36,13.5767067]
[1750954422109,2.2963,142.41,142.36,13.5767067]
[1750954422306,7.0202,142.39,142.37,7.0209]
[1750954422613,2.2746,142.45,142.38,4.5001868]
[1750954422815,7.0188,142.42,142.39,6.55373888]
[1750954424008,7.019,142.41,142.39,7.0198]
[1750954424204,6.7793868,142.44,142.38,11.05392568]
[1750954424406,46.40465496,142.43,142.37,42.73373888]
[1750954424606,7.0197,142.4,142.38,7.0204]
[1750954425107,7.0197,142.4,142.37,49.75443888]
[1750954425512,36.16,142.43,142.37,49.75443888]
[1750954425513,7.02,142.39,142.37,49.75443888]
[1750954426101,7.02,142.39,142.37,43.2007]
[1750954426706,7.0198,142.4,142.38,7.0204]
[1750954427508,7.0193,142.41,142.39,7.0198]
[1750954427708,5.34437329,142.4,142.38,4.5001868]
[1750954427905,4.66039919,142.42,142.38,4.5001868]
[1750954428111,12.36346094,142.41,142.38,11.5204868]
[1750954428311,7.0191,142.41,142.38,11.5204868]
[1750954428712,36.16,142.43,142.37,49.75463888]
[1750954429011,9.9421284,142.42,142.37,49.75463888]
[1750954429214,5.28943632,142.41,142.37,49.75463888]
[1750954429412,36.16,142.43,142.37,49.75463888]
[1750954429614,9.94385594,142.42,142.38,7.0204]
[1750954429821,5.29035541,142.41,142.38,7.0204]
[1750954430019,7.0194,142.41,142.38,7.0204]
[1750954430419,7.0196,142.4,142.38,7.0204]
[1750954431611,7.0196,142.4,142.37,49.75453888]
[1750954432713,7.0201,142.39,142.37,49.75453888]
[1750954432915,7.0201,142.39,142.37,13.57453888]
[1750954434020,7.0198,142.4,142.37,13.57453888]
[1750954434217,5.44427552,142.39,142.37,13.57453888]
[1750954434421,36.16,142.43,142.37,13.57453888]
[1750954434623,10.08940047,142.42,142.37,13.57453888]
[1750954434824,5.44443046,142.41,142.38,7.0205]
[1750954435019,12.46423046,142.4,142.38,7.0205]
[1750954435219,5.44443046,142.39,142.37,6.55373888]
[1750954435519,7.0198,142.4,142.37,6.55373888]
[1750954435720,5.44400589,142.39,142.37,6.55373888]
[1750954435911,7.0198,142.4,142.38,7.0203]
[1750954436323,7.0198,142.4,142.37,6.55373888]
[1750954436527,7.0198,142.4,142.37,13.57443888]
[1750954438926,7.0198,142.4,142.38,7.0204]
[1750954439526,7.0198,142.4,142.37,13.57443888]
[1750954439721,7.0198,142.4,142.37,6.55373888]
[1750954440428,7.0198,142.4,142.38,7.0202]
[1750954440625,7.0192,142.41,142.38,7.0202]
[1750954440927,5.37903513,142.4,142.37,6.55373888]
[1750954441113,7.0187,142.42,142.38,11.06951943]
[1750954441317,5.37996117,142.41,142.39,6.55373888]
[1750954441618,5.37996117,142.41,142.38,4.51578055]
[1750954441619,7.02,142.39,142.38,6.55373888]
[1750954441821,7.02,142.39,142.36,13.22762206]
[1750954441822,12.40092394,142.39,142.37,6.55373888]
[1750954442015,7.02,142.39,142.37,6.55373888]
[1750954442625,7.02,142.39,142.37,13.57463888]
[1750954443220,7.02,142.39,142.37,6.55373888]
[1750954444225,2.4467,142.42,142.38,6.55373888]
[1750954444425,5.39500247,142.41,142.38,6.55373888]
[1750954444721,5.39500247,142.4,142.38,13.57383888]
[1750954444921,5.39500247,142.39,142.38,13.57383888]
[1750954446126,5.39500247,142.39,142.38,6.55373888]
[1750954446832,12.41500247,142.39,142.38,6.55373888]
[1750954447831,5.39500247,142.39,142.38,6.55373888]
[1750954448034,5.39500247,142.39,142.37,15.73254151]
[1750954448232,7.0197,142.4,142.37,15.73254151]
[1750954448429,7.0197,142.4,142.39,6.57222173]
[1750954448636,12.40088606,142.4,142.39,6.57222173]
[1750954449535,12.40088606,142.4,142.38,6.57222173]
[1750954449736,5.38118606,142.39,142.38,6.57222173]
[1750954449934,5.38118606,142.39,142.38,13.59272173]
[1750954450238,7.0197,142.4,142.38,7.0205]
[1750954450423,7.0197,142.4,142.39,6.57164457]
[1750954450629,12.36183633,142.4,142.39,6.57164457]
[1750954451836,5.34213633,142.4,142.39,13.59164457]
[1750954452034,36.16,142.43,142.38,8.71184151]
[1750954452338,5.35134027,142.42,142.4,6.57105011]
[1750954452531,5.35134027,142.41,142.4,6.57105011]
[1750954453437,12.37034027,142.41,142.4,6.57105011]
[1750954455540,10.01797461,142.41,142.37,6.57105011]
[1750954455743,5.35134027,142.4,142.38,6.57105011]
[1750954455934,4.5153103,142.42,142.38,6.57105011]
[1750954455935,12.37164027,142.39,142.38,6.57105011]
[1750954457243,5.35134027,142.39,142.38,6.57105011]
[1750954457542,7.0198,142.4,142.38,7.0204]
[1750954457834,7.0192,142.41,142.39,13.58929279]
[1750954458048,5.36876693,142.4,142.39,13.58929279]
[1750954458341,12.38826693,142.4,142.39,6.56929279]
[1750954459341,5.36876693,142.4,142.39,13.58929279]
[1750954459539,5.36876693,142.4,142.39,7.02]
[1750954460047,7.0192,142.41,142.38,15.73214151]
[1750954460348,7.0192,142.41,142.4,6.56892819]
[1750954460645,12.39573365,142.41,142.4,6.56892819]
[1750954463146,12.39573365,142.41,142.39,6.56892819]
[1750954463340,7.0192,142.41,142.39,6.56892819]
[1750954464448,7.0195,142.4,142.39,6.56892819]
[1750954464642,5.31943448,142.4,142.38,6.56892819]
[1750954464945,36.16,142.43,142.38,6.56892819]
[1750954465144,7.0194,142.41,142.38,13.58912819]
[1750954465348,5.52839956,142.4,142.38,13.58912819]
[1750954465544,5.52839956,142.39,142.38,13.58912819]
[1750954468850,5.52839956,142.39,142.38,7.0202]
[1750954469049,7.0195,142.4,142.38,7.0202]
[1750954469252,7.0192,142.41,142.39,13.56716449]
[1750954469454,5.3193035,142.4,142.39,13.56716449]
[1750954474462,7.0187,142.42,142.4,7.0195]
[1750954474647,2.2792,142.44,142.4,7.0195]
[1750954474846,12.33059419,142.43,142.41,6.55116142]
[1750954475047,5.31229419,142.42,142.41,13.57016142]
[1750954475347,7.018,142.44,142.41,7.019]
[1750954475547,36.06,142.46,142.41,4.51623389]
[1750954475752,5.31687982,142.45,142.44,6.54613619]
[1750954476154,5.52121602,142.45,142.44,6.54613619]
[1750954476650,5.52121602,142.45,142.44,18.07691148]
[1750954476952,40.7825,142.49,142.44,18.07691148]
[1750954476953,40.7825,142.49,142.44,4.51327529]
[1750954477156,12.53647507,142.48,142.45,13.55485538]
[1750954477365,7.016,142.48,142.45,13.55485538]
[1750954477956,7.0164,142.47,142.45,6.53805538]
[1750954478162,7.0164,142.47,142.44,18.06873067]
[1750954478665,7.0164,142.47,142.44,13.55545538]
[1750954478862,7.0164,142.47,142.44,18.06873067]
[1750954479261,7.0164,142.47,142.44,11.53067529]
[1750954479466,7.0164,142.47,142.44,18.06873067]
[1750954479858,40.7825,142.49,142.45,7.017]
[1750954479859,7.0158,142.48,142.45,7.017]
[1750954480354,7.0153,142.49,142.46,11.52977529]
[1750954480669,36.06,142.52,142.46,4.51327529]
[1750954480866,7.0148,142.5,142.47,7.0158]
[1750954481065,36.06,142.52,142.46,4.51327529]
[1750954481272,5.324803,142.51,142.46,4.51327529]
[1750954481463,7.0153,142.49,142.46,11.05133067]
[1750954482064,7.0153,142.49,142.46,4.51327529]
[1750954482262,7.0153,142.49,142.46,11.0374554]
[1750954482572,7.0148,142.5,142.47,7.016]
[1750954482771,36.06,142.52,142.48,4.51327529]
[1750954483161,7.0144,142.51,142.48,11.52837529]
[1750954483361,7.0144,142.51,142.48,4.51327529]
[1750954483766,7.0144,142.51,142.48,11.52857529]
[1750954484167,7.0146,142.5,142.48,4.51327529]
[1750954484674,5.35498519,142.52,142.45,47.0974554]
[1750954484866,7.2148,142.53,142.46,7.0165]
[1750954485064,7.0155,142.49,142.46,7.0165]
[1750954485975,7.0148,142.5,142.47,4.51327529]
[1750954486360,7.0148,142.5,142.47,11.52907529]
[1750954486869,7.0152,142.49,142.47,4.51327529]
[1750954487268,7.2148,142.53,142.47,4.51327529]
[1750954487471,5.37678232,142.52,142.47,4.51327529]
[1750954487665,7.2148,142.53,142.49,4.51327529]
[1750954487870,11.7876,142.53,142.5,7.0142]
[1750954488273,5.37466247,142.54,142.51,4.51327529]
[1750954488471,43.0524,142.55,142.51,4.51327529]
[1750954488774,4.8083,142.57,142.53,4.51327529]
[1750954489273,12.38192037,142.56,142.53,11.52617529]
[1750954489569,4.8083,142.57,142.51,4.51327529]
[1750954489776,7.0129,142.54,142.51,11.52697529]
[1750954491274,7.0132,142.53,142.51,4.51327529]
[1750954491869,7.0128,142.54,142.51,11.52707529]
[1750954495079,7.0124,142.55,142.52,7.0135]
[1750954495674,7.0124,142.55,142.53,11.52627529]
[1750954496376,7.0118,142.56,142.53,11.52627529]
[1750954496674,7.0118,142.56,142.54,7.0126]
[1750954497579,4.51327529,142.6,142.52,4.51327529]
[1750954497782,4.51327529,142.58,142.5,4.51327529]
[1750954497973,40.53327529,142.58,142.5,4.51327529]
[1750954499083,7.0134,142.53,142.5,11.52757529]
[1750954499472,4.51327529,142.54,142.47,36.02]
[1750954499672,7.0718,142.53,142.47,36.02]
[1750954499882,7.0149,142.5,142.47,43.0357]
[1750954500080,7.0718,142.53,142.47,43.0357]
[1750954500287,4.51327529,142.52,142.47,36.02]
[1750954500778,4.51327529,142.52,142.46,11.52957529]
[1750954500978,4.51327529,142.5,142.44,36.02]
[1750954501180,4.51327529,142.48,142.41,4.51327529]
[1750954501477,36.02,142.5,142.45,4.51327529]
[1750954501871,7.0163,142.47,142.44,7.0173]
[1750954502076,40.53327529,142.5,142.44,7.0173]
[1750954502475,7.0159,142.48,142.45,7.017]
[1750954503274,7.0159,142.48,142.46,7.0165]
[1750954503978,7.0159,142.48,142.45,7.0168]
[1750954506392,7.0164,142.47,142.44,7.0175]
[1750954506688,4.51327529,142.49,142.41,4.51327529]
[1750954506989,7.0173,142.45,142.42,7.0182]
[1750954507587,2.4928,142.48,142.41,4.51327529]
[1750954507588,4.51327529,142.47,142.41,4.51327529]
[1750954507796,35.96,142.46,142.4,36.02]
[1750954508085,4.51327529,142.45,142.39,4.51327529]
[1750954508390,4.51327529,142.45,142.37,40.47327529]
[1750954508689,7.0192,142.41,142.38,7.0202]
[1750954509088,7.0198,142.4,142.37,40.47327529]
[1750954509393,4.51327529,142.45,142.37,40.47327529]
[1750954509888,4.51327529,142.45,142.38,7.0202]
[1750954510083,4.51327529,142.45,142.37,40.47327529]
[1750954510284,7.0194,142.41,142.38,7.0202]
[1750954511685,7.0188,142.42,142.39,7.0197]
[1750954511988,4.51327529,142.45,142.39,7.0197]
[1750954512689,7.0193,142.41,142.39,7.0197]
[1750954513291,7.0193,142.41,142.37,40.47327529]
[1750954513292,7.0193,142.41,142.38,7.0203]
[1750954513592,7.0196,142.4,142.37,40.47327529]
[1750954513977,7.0196,142.4,142.37,11.53407529]
[1750954514894,35.96,142.42,142.37,7.0208]
[1750954515078,38.3131,142.42,142.37,7.0208]
[1750954515477,7.0202,142.39,142.37,7.0208]
[1750954517583,38.3131,142.42,142.38,7.0204]
[1750954517784,38.3131,142.42,142.35,4.51327529]
[1750954518189,7.0198,142.4,142.37,4.51327529]
[1750954518392,38.3131,142.42,142.37,4.51327529]
[1750954518793,7.0192,142.41,142.38,7.0202]
[1750954518995,38.3131,142.42,142.37,4.51327529]
[1750954519198,38.3131,142.42,142.34,40.49327529]
[1750954519391,7.0212,142.37,142.34,4.51327529]
[1750954519795,9.23677529,142.41,142.32,7.0232]
[1750954520096,9.23677529,142.41,142.32,4.51327529]
[1750954520602,9.23677529,142.41,142.34,4.51327529]
[1750954521095,9.23677529,142.41,142.34,11.53547529]
[1750954521096,7.0213,142.37,142.34,11.53547529]